fUSD/lending_fUSD_20260617
["ID","MTS","AMOUNT","RATE_DAILY","PERIOD"]
[425228461,1781627445000,-209.40437684,0.00022543,2]
[425228460,1781627445000,-9552.16786547,0.00022543,2]
[425228463,1781627445000,-209.40437684,0.00022543,2]
[425228465,1781627445000,-2080.17592889,0.00022543,2]
[425228485,1781627445000,-202.0,0.00023,2]
[425228477,1781627445000,-973.0,0.00023,2]
[425228478,1781627445000,-1004.44824957,0.00023,2]
[425228479,1781627445000,-5164.743047,0.00023,2]
[425228470,1781627445000,-469.31873587,0.000226,2]
[425228473,1781627445000,-596.57,0.00022693,2]
[425228475,1781627445000,-1771.93096064,0.00022829,7]
[425228472,1781627445000,-3167.97,0.0002263,2]
[425228474,1781627445000,-1004.44824957,0.000227,2]
[425228476,1781627445000,-293.0,0.00023,2]
[425228481,1781627445000,-529.0,0.00023,2]
[425228484,1781627445000,-915.0,0.00023,2]
[425228456,1781627445000,-154.45809484,0.00022543,2]
[425228471,1781627445000,-151.0,0.000226,2]
[425228455,1781627445000,-518.5,0.00022543,2]
[425228443,1781627445000,-469.31873577,0.00022325,2]
[425228457,1781627445000,-151.0,0.00022543,2]
[425228482,1781627445000,-1674.0,0.00023,2]
[425228431,1781627445000,-800.0,0.00022192,2]
[425228434,1781627445000,-800.0,0.00022192,2]
[425228432,1781627445000,-800.0,0.00022192,2]
[425228435,1781627445000,-407.0,0.00022192,2]
[425228429,1781627445000,-800.0,0.00022192,2]
[425228433,1781627445000,-800.0,0.00022192,2]
[425228430,1781627445000,-800.0,0.00022192,2]
[425228436,1781627445000,-316.0,0.00022192,2]
[425228438,1781627445000,-469.31873577,0.00022215,2]
[425228437,1781627445000,-320.0,0.00022192,2]
[425228440,1781627445000,-469.31873577,0.0002227,2]
[425228446,1781627445000,-469.31873577,0.0002238,2]
[425228444,1781627445000,-151.0,0.00022325,2]
[425228447,1781627445000,-151.0,0.0002238,2]
[425228439,1781627445000,-151.0,0.00022215,2]
[425228445,1781627445000,-1004.42851583,0.00022329,7]
[425228441,1781627445000,-151.0,0.0002227,2]
[425228442,1781627445000,-1004.44824957,0.000223,2]
[425228448,1781627445000,-469.31873577,0.00022435,2]
[425228449,1781627445000,-151.0,0.00022435,2]
[425228450,1781627445000,-152.0,0.00022454,3]
[425228453,1781627445000,-151.0,0.0002249,2]
[425228452,1781627445000,-469.31873577,0.0002249,2]
[425228454,1781627445000,-1004.44824957,0.000225,2]
[425228451,1781627445000,-389.25,0.00022466,2]
[425228483,1781627445000,-377.0,0.00023,2]
[425228480,1781627445000,-567.0,0.00023,2]
[425228492,1781627445000,-288.396368,0.00023015,7]
[425228515,1781627445000,-350.169859,0.00023639,2]
[425228519,1781627445000,-2236.95670847,0.00023639,2]
[425228518,1781627445000,-178.7292178,0.00023639,2]
[425228526,1781627445000,-2000.0,0.000239,2]
[425228528,1781627445000,-500.0,0.00023999,2]
[425228524,1781627445000,-152.0,0.00023723,5]
[425228527,1781627445000,-500.0,0.00023999,2]
[425228521,1781627445000,-194.72792766,0.00023639,2]
[425228522,1781627445000,-871.0,0.00023639,5]
[425228523,1781627445000,-209.08,0.00023642,2]
[425228520,1781627445000,-200.0,0.00023639,2]
[425228529,1781627445000,-500.0,0.00023999,2]
[425228530,1781627445000,-500.0,0.00023999,2]
[425228531,1781627445000,-500.0,0.00023999,2]
[425228533,1781627445000,-293.0,0.00024,2]
[425228536,1781627445000,-567.0,0.00024,2]
[425228532,1781627445000,-500.0,0.00023999,2]
[425228538,1781627445000,-1674.0,0.00024,2]
[425228535,1781627445000,-5164.743047,0.00024,2]
[425228539,1781627445000,-377.0,0.00024,2]
[425228534,1781627445000,-973.0,0.00024,2]
[425228537,1781627445000,-529.0,0.00024,2]
[425228541,1781627445000,-202.0,0.00024,2]
[425228540,1781627445000,-915.0,0.00024,2]
[425228493,1781627445000,-152.0,0.00023089,4]
[425228517,1781627445000,-225.18697532,0.00023639,2]
[425228514,1781627445000,-10272.10520532,0.00023639,2]
[425228525,1781627445000,-3586.4928,0.00023829,7]
[425228507,1781627445000,-160.0,0.00023287,2]
[425228512,1781627445000,-151.0,0.00023639,2]
[425228490,1781627445000,-3632.0,0.00023,2]
[425228486,1781627445000,-541.0,0.00023,2]
[425228489,1781627445000,-2396.0,0.00023,2]
[425228487,1781627445000,-541.0,0.00023,2]
[425228488,1781627445000,-393.0,0.00023,2]
[425228491,1781627445000,-462.0,0.00023,2]
[425228494,1781627445000,-537.6845,0.00023091,2]
[425228542,1781627445000,-500.0,0.00024,2]
[425228499,1781627445000,-217.15233878,0.00023091,2]
[425228501,1781627445000,-217.15233878,0.00023091,2]
[425228502,1781627445000,-217.15233878,0.00023091,2]
[425228496,1781627445000,-151.0,0.00023091,2]
[425228497,1781627445000,-217.15233878,0.00023091,2]
[425228511,1781627445000,-154.45809484,0.00023639,2]
[425228508,1781627445000,-199.727304,0.00023295,2]
[425228498,1781627445000,-9905.59807649,0.00023091,2]
[425228516,1781627445000,-151.0,0.00023639,2]
[425228510,1781627445000,-557.5788265,0.00023639,2]
[425228513,1781627445000,-225.18697532,0.00023639,2]
[425228506,1781627445000,-1046.0,0.00023173,5]
[425228509,1781627445000,-2650.70274489,0.00023329,7]
[425228500,1781627445000,-151.0,0.00023091,2]
[425228503,1781627445000,-2157.14243826,0.00023091,2]
[425228495,1781627445000,-154.45809484,0.00023091,2]
[425228505,1781627445000,-187.78006524,0.00023091,2]
[425228504,1781627445000,-200.0,0.00023091,2]
[425228581,1781627446000,-200.0,0.00024735,2]
[425228586,1781627446000,-1350.0,0.0002499,30]
[425228582,1781627446000,-5049.5279,0.00024842,2]
[425228579,1781627446000,-2405.55389863,0.00024735,2]
[425228584,1781627446000,-2500.0,0.0002499,2]
[425228574,1781627446000,-721.12765534,0.00024734,2]
[425228580,1781627446000,-209.40437684,0.00024735,2]
[425228578,1781627446000,-242.15909246,0.00024735,2]
[425228577,1781627446000,-151.0,0.00024735,2]
[425228576,1781627446000,-151.0,0.00024735,2]
[425228585,1781627446000,-950.0,0.0002499,2]
[425228583,1781627446000,-5528.0,0.000249,3]
[425228587,1781627446000,-152.0,0.00024993,7]
[425228605,1781627446000,-347.53,0.00025,2]
[425228588,1781627446000,-300.0,0.00025,2]
[425228599,1781627446000,-552.86406734,0.00025,2]
[425228589,1781627446000,-987.35838667,0.00025,2]
[425228591,1781627446000,-531.55258274,0.00025,2]
[425228590,1781627446000,-575.70665361,0.00025,2]
[425228595,1781627446000,-219.09625852,0.00025,2]
[425228593,1781627446000,-389.45897306,0.00025,2]
[425228592,1781627446000,-1674.8162992,0.00025,2]
[425228596,1781627446000,-150.0,0.00025,2]
[425228597,1781627446000,-150.0,0.00025,2]
[425228594,1781627446000,-930.0,0.00025,2]
[425228600,1781627446000,-553.10129498,0.00025,2]
[425228573,1781627446000,-599.60298507,0.00024734,2]
[425228598,1781627446000,-150.964,0.00025,2]
[425228569,1781627446000,-703.09,0.00024658,2]
[425228550,1781627446000,-462.0,0.00024,2]
[425228568,1781627446000,-158.59,0.00024658,8]
[425228549,1781627446000,-150.0,0.00024,2]
[425228604,1781627446000,-347.53,0.00025,2]
[425228552,1781627446000,-340.59,0.0002411,2]
[425228551,1781627446000,-22370.0,0.000241,2]
[425228544,1781627446000,-541.0,0.00024,2]
[425228545,1781627446000,-541.0,0.00024,2]
[425228547,1781627446000,-2396.0,0.00024,2]
[425228543,1781627446000,-51867.22503792,0.00024,5]
[425228548,1781627446000,-3632.0,0.00024,2]
[425228546,1781627446000,-393.0,0.00024,2]
[425228553,1781627446000,-578.20924308,0.00024187,2]
[425228554,1781627446000,-154.45809489,0.00024187,2]
[425228555,1781627446000,-151.0,0.00024187,2]
[425228559,1781627446000,-151.0,0.00024187,2]
[425228560,1781627446000,-233.5188934,0.00024187,2]
[425228556,1781627446000,-167.10939932,0.00024187,2]
[425228564,1781627446000,-152.0,0.00024358,6]
[425228563,1781627446000,-200.0,0.00024187,2]
[425228562,1781627446000,-201.93286098,0.00024187,2]
[425228561,1781627446000,-2319.72410669,0.00024187,2]
[425228557,1781627446000,-3610.00685391,0.00024187,2]
[425228566,1781627446000,-3373.53,0.000246,2]
[425228565,1781627446000,-10348.44,0.000246,2]
[425228570,1781627446000,-1000.0,0.00024658,2]
[425228575,1781627446000,-599.60298507,0.00024735,2]
[425228567,1781627446000,-3646.0,0.00024656,2]
[425228572,1781627446000,-151.0,0.00024734,2]
[425228571,1781627446000,-1592.75,0.00024674,7]
[425228611,1781627446000,-151.0,0.00025283,2]
[425228607,1781627446000,-480.7170217,0.00025,2]
[425228601,1781627446000,-397.24074205,0.00025,2]
[425228634,1781627446000,-152.0,0.00026263,9]
[425228639,1781627446000,-233.5188934,0.00026379,2]
[425228650,1781627446000,-152.0,0.00026898,10]
[425228641,1781627446000,-159.86116258,0.00026397,2]
[425228651,1781627446000,-151.0,0.00026927,2]
[425228640,1781627446000,-200.0,0.00026379,2]
[425228649,1781627446000,-525.0,0.00026881,10]
[425228646,1781627446000,-200.0,0.00026593,2]
[425228642,1781627446000,-1210.28300842,0.00026397,2]
[425228645,1781627446000,-200.0,0.0002658,2]
[425228643,1781627446000,-200.0,0.00026579,2]
[425228644,1781627446000,-200.0,0.0002658,2]
[425228648,1781627446000,-155.22911027,0.00026879,2]
[425228647,1781627446000,-200.0,0.00026595,2]
[425228652,1781627446000,-151.0,0.00026927,2]
[425228654,1781627446000,-2781.82699784,0.00026927,2]
[425228657,1781627446000,-1164.0,0.00026947,2]
[425228655,1781627446000,-242.15909246,0.00026927,2]
[425228656,1781627446000,-200.0,0.00026927,2]
[425228661,1781627446000,-159.20307737,0.00027113,7]
[425228667,1781627446000,-169.568616,0.00027114,7]
[425228659,1781627446000,-181.70442522,0.00027113,7]
[425228653,1781627446000,-280.03725111,0.00026927,2]
[425228669,1781627446000,-171.64762384,0.00027114,7]
[425228663,1781627446000,-156.59767248,0.00027114,7]
[425228665,1781627446000,-187.90873244,0.00027114,7]
[425228673,1781627446000,-155.55333239,0.00027116,7]
[425228633,1781627446000,-162.0,0.00026206,3]
[425228630,1781627446000,-243.28,0.00026027,7]
[425228671,1781627446000,-171.74070117,0.00027114,7]
[425228626,1781627446000,-225.18697532,0.00025831,2]
[425228636,1781627446000,-151.0,0.00026379,2]
[425228603,1781627446000,-3636.60297322,0.00025,2]
[425228612,1781627446000,-151.0,0.00025283,2]
[425228610,1781627446000,-621.78829552,0.00025283,2]
[425228608,1781627446000,-784.0,0.00025027,5]
[425228606,1781627446000,-347.53,0.00025,2]
[425228609,1781627446000,-206.0,0.00025073,2]
[425228614,1781627446000,-2494.55939288,0.00025283,2]
[425228625,1781627446000,-2586.85809042,0.00025831,2]
[425228624,1781627446000,-260.4103811,0.00025831,2]
[425228618,1781627446000,-1210.28300842,0.00025397,2]
[425228616,1781627446000,-200.0,0.00025283,2]
[425228615,1781627446000,-217.15233878,0.00025283,2]
[425228620,1781627446000,-5528.0,0.000258,5]
[425228602,1781627446000,-2409.86918073,0.00025,2]
[425228619,1781627446000,-152.0,0.00025628,8]
[425228628,1781627446000,-550.0,0.00026,2]
[425228632,1781627446000,-285.0,0.00026194,7]
[425228631,1781627446000,-236.0152633,0.00026169,2]
[425228629,1781627446000,-162.37851493,0.00026027,3]
[425228622,1781627446000,-151.0,0.00025831,2]
[425228638,1781627446000,-2682.57183977,0.00026379,2]
[425228635,1781627446000,-151.0,0.00026379,2]
[425228627,1781627446000,-200.0,0.00025831,2]
[425228621,1781627446000,-542.74990657,0.00025831,2]
[425228623,1781627446000,-151.0,0.00025831,2]
[425228613,1781627446000,-251.11897888,0.00025283,2]
[425228617,1781627446000,-159.86116258,0.00025397,2]
[425228637,1781627446000,-270.0455652,0.00026379,2]
[425228730,1781627447000,-1000.0,0.00027397,2]
[425228723,1781627447000,-500.0,0.00027397,15]
[425228720,1781627447000,-1000.0,0.00027397,2]
[425228724,1781627447000,-1000.0,0.00027397,2]
[425228714,1781627447000,-500.0,0.00027396,2]
[425228717,1781627447000,-500.0,0.00027396,2]
[425228712,1781627447000,-156.9,0.00027396,2]
[425228711,1781627447000,-394.0,0.00027365,7]
[425228710,1781627447000,-1592.75,0.00027349,7]
[425228713,1781627447000,-500.0,0.00027396,2]
[425228719,1781627447000,-500.0,0.00027397,15]
[425228721,1781627447000,-500.0,0.00027397,15]
[425228727,1781627447000,-500.0,0.00027397,15]
[425228722,1781627447000,-1000.0,0.00027397,2]
[425228726,1781627447000,-1000.0,0.00027397,2]
[425228725,1781627447000,-500.0,0.00027397,15]
[425228729,1781627447000,-502.58377949,0.00027397,15]
[425228732,1781627447000,-1000.0,0.00027397,2]
[425228731,1781627447000,-1000.0,0.00027397,2]
[425228733,1781627447000,-1000.0,0.00027397,2]
[425228736,1781627447000,-1000.0,0.00027397,2]
[425228734,1781627447000,-1000.0,0.00027397,2]
[425228738,1781627447000,-1000.0,0.00027397,2]
[425228715,1781627447000,-500.0,0.00027396,2]
[425228737,1781627447000,-1000.0,0.00027397,2]
[425228728,1781627447000,-1000.0,0.00027397,2]
[425228708,1781627447000,-174.64444681,0.00027186,7]
[425228707,1781627447000,-160.0,0.00027166,3]
[425228709,1781627447000,-185.09479384,0.00027186,7]
[425228739,1781627447000,-1000.0,0.00027397,2]
[425228677,1781627447000,-191.54401508,0.00027116,7]
[425228681,1781627447000,-153.56483775,0.00027116,7]
[425228675,1781627447000,-166.11660225,0.00027116,7]
[425228679,1781627447000,-163.62024658,0.00027116,7]
[425228683,1781627447000,-153.59140074,0.00027116,7]
[425228692,1781627447000,-150.73373042,0.00027116,7]
[425228693,1781627447000,-183.2928844,0.00027116,7]
[425228688,1781627447000,-155.48323013,0.00027116,7]
[425228686,1781627447000,-224.79807154,0.00027116,7]
[425228691,1781627447000,-153.64129962,0.00027116,7]
[425228685,1781627447000,-199.95344544,0.00027116,7]
[425228718,1781627447000,-806.85533895,0.00027397,7]
[425228695,1781627447000,-152.37032485,0.00027116,7]
[425228703,1781627447000,-184.36702486,0.00027158,7]
[425228705,1781627447000,-174.62423272,0.00027158,7]
[425228700,1781627447000,-203.26409048,0.00027116,5]
[425228694,1781627447000,-207.47573982,0.00027116,7]
[425228702,1781627447000,-725.0,0.00027137,2]
[425228696,1781627447000,-197.12034544,0.00027116,7]
[425228704,1781627447000,-171.84438575,0.00027158,7]
[425228698,1781627447000,-224.67239342,0.00027116,7]
[425228701,1781627447000,-276.71159163,0.00027116,7]
[425228699,1781627447000,-173.55327944,0.00027116,2]
[425228697,1781627447000,-186.87422298,0.00027116,7]
[425228716,1781627447000,-500.0,0.00027396,2]
[425228706,1781627447000,-174.87950882,0.00027158,7]
[425228741,1781627447000,-1000.0,0.00027397,2]
[425228745,1781627447000,-1000.0,0.00027397,2]
[425228740,1781627447000,-1000.0,0.00027397,2]
[425228772,1781627447000,-926.87,0.00027397,2]
[425228770,1781627447000,-926.87,0.00027397,2]
[425228775,1781627447000,-926.87,0.00027397,2]
[425228769,1781627447000,-926.87,0.00027397,2]
[425228774,1781627447000,-926.87,0.00027397,2]
[425228778,1781627447000,-926.87,0.00027397,2]
[425228777,1781627447000,-926.87,0.00027397,2]
[425228779,1781627447000,-926.87,0.00027397,2]
[425228780,1781627447000,-926.87,0.00027397,2]
[425228782,1781627447000,-926.87,0.00027397,2]
[425228781,1781627447000,-926.87,0.00027397,2]
[425228784,1781627447000,-926.87,0.00027397,2]
[425228785,1781627447000,-926.87,0.00027397,2]
[425228783,1781627447000,-926.87,0.00027397,2]
[425228787,1781627447000,-926.87,0.00027397,2]
[425228786,1781627447000,-926.87,0.00027397,2]
[425228788,1781627447000,-926.87,0.00027397,2]
[425228791,1781627447000,-864.92,0.00027397,2]
[425228789,1781627447000,-926.87,0.00027397,2]
[425228797,1781627447000,-864.92,0.00027397,2]
[425228793,1781627447000,-864.92,0.00027397,2]
[425228792,1781627447000,-864.92,0.00027397,2]
[425228790,1781627447000,-926.89355088,0.00027397,2]
[425228795,1781627447000,-864.92,0.00027397,2]
[425228794,1781627447000,-864.92,0.00027397,2]
[425228768,1781627447000,-926.87,0.00027397,2]
[425228773,1781627447000,-926.87,0.00027397,2]
[425228796,1781627447000,-864.92,0.00027397,2]
[425228771,1781627447000,-926.87,0.00027397,2]
[425228767,1781627447000,-926.87,0.00027397,2]
[425228742,1781627447000,-1000.0,0.00027397,2]
[425228744,1781627447000,-1000.0,0.00027397,2]
[425228743,1781627447000,-1000.0,0.00027397,2]
[425228798,1781627447000,-864.92,0.00027397,2]
[425228746,1781627447000,-1000.0,0.00027397,2]
[425228747,1781627447000,-1000.0,0.00027397,2]
[425228748,1781627447000,-1000.0,0.00027397,2]
[425228753,1781627447000,-1000.0,0.00027397,2]
[425228749,1781627447000,-1000.0,0.00027397,2]
[425228752,1781627447000,-1000.0,0.00027397,2]
[425228751,1781627447000,-1000.0,0.00027397,2]
[425228750,1781627447000,-1000.0,0.00027397,2]
[425228735,1781627447000,-1000.0,0.00027397,2]
[425228754,1781627447000,-1000.0,0.00027397,2]
[425228755,1781627447000,-1000.0,0.00027397,2]
[425228765,1781627447000,-490.8325641,0.00027397,2]
[425228776,1781627447000,-926.87,0.00027397,2]
[425228766,1781627447000,-605.65135585,0.00027397,2]
[425228759,1781627447000,-500.28796441,0.00027397,2]
[425228764,1781627447000,-500.0,0.00027397,2]
[425228763,1781627447000,-500.0,0.00027397,2]
[425228760,1781627447000,-500.0,0.00027397,2]
[425228758,1781627447000,-201.71383472,0.00027397,7]
[425228761,1781627447000,-500.0,0.00027397,2]
[425228756,1781627447000,-1000.0,0.00027397,2]
[425228757,1781627447000,-326.46693652,0.00027397,2]
[425228762,1781627447000,-500.0,0.00027397,2]
[425228838,1781627448000,-451.04630341,0.00027397,2]
[425228839,1781627448000,-158.59,0.00027397,31]
[425228837,1781627448000,-1500.0,0.00027397,2]
[425228835,1781627448000,-2851.95187083,0.00027397,2]
[425228834,1781627448000,-3000.0,0.00027397,2]
[425228831,1781627448000,-3000.0,0.00027397,2]
[425228832,1781627448000,-3000.0,0.00027397,2]
[425228830,1781627448000,-3000.0,0.00027397,2]
[425228823,1781627448000,-3000.0,0.00027397,2]
[425228833,1781627448000,-3000.0,0.00027397,2]
[425228845,1781627448000,-213.14821676,0.00027397,7]
[425228843,1781627448000,-300.0,0.00027397,2]
[425228842,1781627448000,-1000.0,0.00027397,20]
[425228840,1781627448000,-429.74079126,0.00027397,2]
[425228844,1781627448000,-175.2313487,0.00027397,7]
[425228841,1781627448000,-703.09,0.00027397,2]
[425228829,1781627448000,-3000.0,0.00027397,2]
[425228846,1781627448000,-806.85533895,0.00027397,7]
[425228847,1781627448000,-1000.0,0.000274,2]
[425228848,1781627448000,-1056.56,0.000274,2]
[425228849,1781627448000,-1730.43,0.000274,7]
[425228850,1781627448000,-2582.67,0.000274,7]
[425228853,1781627448000,-5218.67,0.000274,2]
[425228851,1781627448000,-5218.67,0.000274,2]
[425228836,1781627448000,-7004.2,0.00027397,2]
[425228828,1781627448000,-3000.0,0.00027397,2]
[425228816,1781627448000,-500.0,0.00027397,2]
[425228827,1781627448000,-3000.0,0.00027397,2]
[425228852,1781627448000,-5218.67,0.000274,2]
[425228799,1781627448000,-864.92,0.00027397,2]
[425228809,1781627448000,-864.92,0.00027397,2]
[425228810,1781627448000,-864.92,0.00027397,2]
[425228800,1781627448000,-864.92,0.00027397,2]
[425228802,1781627448000,-864.92,0.00027397,2]
[425228805,1781627448000,-864.92,0.00027397,2]
[425228804,1781627448000,-864.92,0.00027397,2]
[425228807,1781627448000,-864.92,0.00027397,2]
[425228801,1781627448000,-864.92,0.00027397,2]
[425228803,1781627448000,-864.92,0.00027397,2]
[425228808,1781627448000,-864.92,0.00027397,2]
[425228806,1781627448000,-864.92,0.00027397,2]
[425228811,1781627448000,-864.92,0.00027397,2]
[425228822,1781627448000,-3000.0,0.00027397,2]
[425228818,1781627448000,-3000.0,0.00027397,2]
[425228817,1781627448000,-3000.0,0.00027397,2]
[425228821,1781627448000,-3000.0,0.00027397,2]
[425228815,1781627448000,-428.2386209,0.00027397,2]
[425228820,1781627448000,-3000.0,0.00027397,2]
[425228819,1781627448000,-3000.0,0.00027397,2]
[425228813,1781627448000,-864.92,0.00027397,2]
[425228814,1781627448000,-865.03153067,0.00027397,2]
[425228824,1781627448000,-3000.0,0.00027397,2]
[425228825,1781627448000,-3000.0,0.00027397,2]
[425228826,1781627448000,-3000.0,0.00027397,2]
[425228812,1781627448000,-864.92,0.00027397,2]
[425228854,1781627448000,-5218.67,0.000274,2]
[425228856,1781627448000,-151.0,0.00027473,2]
[425228884,1781627448000,-2000.0,0.00027947,2]
[425228889,1781627448000,-2000.0,0.00027947,2]
[425228883,1781627448000,-2000.0,0.00027947,2]
[425228888,1781627448000,-2000.0,0.00027947,2]
[425228886,1781627448000,-2000.0,0.00027947,2]
[425228892,1781627448000,-600.0,0.00028,2]
[425228891,1781627448000,-2000.0,0.00027947,2]
[425228894,1781627448000,-151.0,0.00028023,2]
[425228893,1781627448000,-153.33214767,0.00028023,2]
[425228896,1781627448000,-2991.49051684,0.00028023,2]
[425228897,1781627448000,-260.4103811,0.00028023,2]
[425228900,1781627448000,-152.0,0.00028168,12]
[425228898,1781627448000,-200.0,0.00028023,2]
[425228899,1781627448000,-404.24174675,0.00028088,7]
[425228902,1781627448000,-1872.0,0.00028207,3]
[425228903,1781627448000,-150.0,0.00028299,20]
[425228908,1781627448000,-1000.0,0.0002835,2]
[425228907,1781627448000,-2582.67,0.000283,7]
[425228901,1781627448000,-725.0,0.00028205,3]
[425228905,1781627448000,-3373.53,0.000283,2]
[425228904,1781627448000,-10348.44,0.000283,2]
[425228906,1781627448000,-1730.43,0.000283,7]
[425228909,1781627448000,-1000.0,0.0002835,2]
[425228910,1781627448000,-1084.83,0.0002835,2]
[425228855,1781627448000,-5218.67,0.000274,2]
[425228887,1781627448000,-2000.0,0.00027947,2]
[425228890,1781627448000,-2000.0,0.00027947,2]
[425228895,1781627448000,-315.2822056,0.00028023,2]
[425228882,1781627448000,-2000.0,0.00027947,2]
[425228857,1781627448000,-621.78829552,0.00027473,2]
[425228881,1781627448000,-170.5,0.00027805,7]
[425228867,1781627448000,-3646.0,0.00027656,2]
[425228858,1781627448000,-747.80937859,0.00027473,2]
[425228864,1781627448000,-200.0,0.00027475,2]
[425228859,1781627448000,-151.0,0.00027475,2]
[425228863,1781627448000,-251.11897888,0.00027475,2]
[425228861,1781627448000,-290.3986294,0.00027475,2]
[425228866,1781627448000,-152.0,0.00027533,11]
[425228860,1781627448000,-151.0,0.00027475,2]
[425228865,1781627448000,-500.0,0.000275,7]
[425228869,1781627448000,-192.24,0.00027661,2]
[425228879,1781627448000,-273.28033772,0.00027706,2]
[425228862,1781627448000,-2884.75459676,0.00027475,2]
[425228880,1781627448000,-596.86,0.00027717,2]
[425228885,1781627448000,-2000.0,0.00027947,2]
[425228868,1781627448000,-393.0,0.00027661,2]
[425228878,1781627448000,-500.0,0.00027706,2]
[425228876,1781627448000,-500.0,0.00027706,2]
[425228875,1781627448000,-500.0,0.00027706,2]
[425228877,1781627448000,-500.0,0.00027706,2]
[425228873,1781627448000,-500.0,0.00027706,2]
[425228871,1781627448000,-500.0,0.00027706,2]
[425228872,1781627448000,-500.0,0.00027706,2]
[425228870,1781627448000,-725.0,0.00027671,2]
[425228874,1781627448000,-500.0,0.00027706,2]
[425228947,1781627449000,-347.10655887,0.000284,2]
[425228951,1781627449000,-243.25385441,0.000284,7]
[425228950,1781627449000,-176.0698863,0.000284,2]
[425228949,1781627449000,-155.84442586,0.000284,2]
[425228948,1781627449000,-406.52818096,0.000284,5]
[425228939,1781627449000,-304.7406497,0.000284,7]
[425228943,1781627449000,-212.57256951,0.000284,5]
[425228937,1781627449000,-366.5857688,0.000284,7]
[425228944,1781627449000,-170.77910681,0.000284,7]
[425228955,1781627449000,-343.6887715,0.00028444,7]
[425228946,1781627449000,-225.07139675,0.000284,7]
[425228952,1781627449000,-553.42318326,0.000284,7]
[425228961,1781627449000,-350.46269741,0.00028444,7]
[425228956,1781627449000,-151.10964837,0.00028444,7]
[425228954,1781627449000,-368.73404972,0.00028444,7]
[425228957,1781627449000,-156.83193801,0.00028444,7]
[425228953,1781627449000,-217.27853933,0.000284,7]
[425228958,1781627449000,-349.24846544,0.00028444,7]
[425228968,1781627449000,-200.0,0.00028571,2]
[425228966,1781627449000,-5000.0,0.00028568,7]
[425228963,1781627449000,-370.18958769,0.00028473,7]
[425228964,1781627449000,-168.64,0.00028493,2]
[425228965,1781627449000,-5000.74745351,0.00028532,7]
[425228962,1781627449000,-349.28889363,0.00028473,7]
[425228942,1781627449000,-373.74844597,0.000284,7]
[425228959,1781627449000,-349.75901763,0.00028444,7]
[425228941,1781627449000,-394.24069088,0.000284,7]
[425228912,1781627449000,-153.16976195,0.00028397,7]
[425228940,1781627449000,-154.52516762,0.000284,7]
[425228911,1781627449000,-177.57555352,0.00028397,7]
[425228913,1781627449000,-208.22210378,0.00028397,7]
[425228920,1781627449000,-375.81746487,0.00028397,7]
[425228919,1781627449000,-313.19534496,0.00028397,7]
[425228915,1781627449000,-159.53996652,0.00028397,7]
[425228916,1781627449000,-225.72556578,0.00028397,7]
[425228923,1781627449000,-343.29524767,0.00028397,7]
[425228922,1781627449000,-171.26937118,0.00028397,7]
[425228914,1781627449000,-179.92874479,0.00028397,7]
[425228921,1781627449000,-339.137232,0.00028397,7]
[425228917,1781627449000,-363.40885043,0.00028397,7]
[425228918,1781627449000,-318.40615473,0.00028397,7]
[425228945,1781627449000,-449.34478685,0.000284,7]
[425228925,1781627449000,-332.23320449,0.000284,7]
[425228928,1781627449000,-327.24049315,0.000284,7]